Workbook

Sheet Eignir 02-17
B3: Eignir og skuldir einstaklinga 2012 til 2017
B5: Álagningarár | H5: Eignir og skuldir | S5: Breytingar '16-'17 | Z5: Fjöldi fjölskyldna | AK5: Breytingar '16-'17
B6: Upphæðir í milljónum króna | C6: 2002 | D6: 2003 | E6: 2004 | F6: 2005 | G6: 2006 | H6: 2007 | I6: 2008 | J6: 2009 | K6: 2010 | L6: 2011 | M6: 2012 | N6: 2013 | O6: 2014 | P6: 2015 | Q6: 2016 | R6: 2017 | S6: Breyting | T6: % | U6: 2002 | V6: 2003 | W6: 2004 | X6: 2005 | Y6: 2006 | Z6: 2007 | AA6: 2008 | AB6: 2009 | AC6: 2010 | AD6: 2011 | AE6: 2012 | AF6: 2013 | AG6: 2014 | AH6: 2015 | AI6: 2016 | AJ6: 2017 | AK6: Fjöldi | AL6: % | BC6: 2012
B7: Hrein eign skv. efnahagsreikningi | C7: 43814138794 | D7: 36835555171 | E7: 37596339798 | F7: 37887222164 | G7: 37864205194 | H7: 38166082512 | I7: 41398630221 | J7: 37280507633 | K7: 35811077658 | L7: 35993026379 | M7: 38338358932 | N7: 41064893982 | O7: 42470223486 | P7: 45050653230 | Q7: 46415731025 | R7: 46963632936 | S7: =+R7-Q7 -> 547901911 | T7: =+R7/Q7-1 -> 0.01180422884 | U7: 10041 | V7: 9063 | W7: 8901 | X7: 8395 | Y7: 8049 | Z7: 7746 | AA7: 7599 | AB7: 7181 | AC7: 7060 | AD7: 7016 | AE7: 7119 | AF7: 7086 | AG7: 6984 | AH7: 6944 | AI7: 6930 | AJ7: 6754 | AK7: =+AJ7-AI7 -> -176 | AL7: =+AJ7/AI7-1 -> -0.0253968254
B8: Innlend og erlend verðbréf | C8: 85943237153 | D8: 93277753887 | E8: 112786850743 | F8: 140483234619 | G8: 197802443648 | H8: 250338615260 | I8: 372601874991 | J8: 210656460220 | K8: 269903281027 | L8: 288041443889 | M8: 278735595084 | N8: 286414878602 | O8: 283398902954 | P8: 290997821433 | Q8: 318277349018 | R8: 336943256664 | S8: 18665907646 | T8: 0.05864667311 | V8: - | W8: - | X8: - | Y8: 26657 | Z8: 30238 | AA8: 36000 | AB8: 23992 | AC8: 33184 | AD8: 47334 | AE8: 48477 | AF8: 45090 | AG8: 45075 | AH8: 43007 | AI8: 46941 | AJ8: 42336 | AK8: -4605 | AL8: -0.09810187256
B9: Eignarskattsfrjáls verðbréf | C9: 44802840354 | D9: 46998127085 | E9: 52374513851 | F9: 61665504345 | G9: - | H9: - | I9: - | J9: - | K9: - | L9: - | M9: - | N9: - | O9: - | S9: 0 | U9: 16459 | V9: 15961 | W9: 15151 | X9: 14318 | Y9: - | Z9: - | AA9: - | AB9: - | AC9: - | AD9: - | AE9: - | AF9: - | AG9: - | AK9: 0
B10: Verðbréf, útistand. skuldir ofl. | C10: 40940464380 | D10: 46105575327 | E10: 60264291721 | F10: 78636518039 | G10: - | H10: - | I10: - | J10: - | K10: - | L10: - | M10: - | N10: - | O10: - | S10: 0 | U10: 14445 | V10: 14470 | W10: 14720 | X10: 17948 | Y10: - | Z10: - | AA10: - | AB10: - | AC10: - | AD10: - | AE10: - | AF10: - | AG10: - | AK10: 0
B11: Stofnsjóðsinneign | C11: 199932419 | D11: 174051475 | E11: 148045171 | F11: 181212235 | G11: - | H11: - | I11: - | J11: - | K11: - | L11: - | M11: - | N11: - | O11: - | S11: 0 | U11: 3744 | V11: 2437 | W11: 2370 | X11: 2228 | Y11: - | Z11: - | AA11: - | AB11: - | AC11: - | AD11: - | AE11: - | AF11: - | AG11: - | AK11: 0
B12: Ökutæki | C12: 103473568542 | D12: 102697788463 | E12: 107243096027 | F12: 116526831257 | G12: 139843677232 | H12: 158088298095 | I12: 184811897045 | J12: 196045084848 | K12: 185329221779 | L12: 176720719283 | M12: 174534534020 | N12: 180315204793 | O12: 187386058437 | P12: 194371080656 | Q12: 210109896142 | R12: 237580019568 | S12: 27470123426 | T12: 0.1307416925 | U12: 91351 | V12: 92304 | W12: 94351 | X12: 95489 | Y12: 98266 | Z12: 98387 | AA12: 102831 | AB12: 106097 | AC12: 105525 | AD12: 104357 | AE12: 104518 | AF12: 105972 | AG12: 108413 | AH12: 109015 | AI12: 110306 | AJ12: 113226 | AK12: 2920 | AL12: 0.02647181477
B13: Hlutabréf | C13: 49117270230 | D13: 47867719847 | E13: 47105526976 | F13: 43384903002 | G13: 50211241842 | H13: 70211492686 | I13: 82268678884 | J13: 77953467854 | K13: 68140198395 | L13: 50562558710 | M13: 49747529296 | N13: 48862082502 | O13: 48464925258 | P13: 53279723586 | Q13: 54492097058 | R13: 54998451019 | S13: 506353961 | T13: 0.009292245818 | U13: 52478 | V13: 52420 | W13: 50699 | X13: 46878 | Y13: 51439 | Z13: 54498 | AA13: 56288 | AB13: 51722 | AC13: 50644 | AD13: 40817 | AE13: 39996 | AF13: 48795 | AG13: 50054 | AH13: 50159 | AI13: 50496 | AJ13: 50583 | AK13: 87 | AL13: 0.001722908745
B14: Hlutabréf í erlendum félögum | C14: 4168485502 | D14: 3123997584 | E14: 3768632038 | F14: 3769572515 | G14: 4799931317 | H14: 15435436872 | I14: 23424250789 | J14: 16494910391 | K14: 12627552460 | L14: 12899466918 | M14: 12707511229 | N14: 9972033461 | O14: 9039514910 | P14: 9182887397 | Q14: 10051103640 | R14: 10837899602 | S14: 786795962 | T14: 0.07827955916 | U14: 6251 | V14: 6013 | W14: 5951 | X14: 5595 | Y14: 5397 | Z14: 3949 | AA14: 5403 | AB14: 4891 | AC14: 4743 | AD14: 4563 | AE14: 4370 | AF14: 4239 | AG14: 4112 | AH14: 4028 | AI14: 3933 | AJ14: 3821 | AK14: -112 | AL14: -0.02847698958
B15: Innlendar innstæður. ofl. skv sérl. | C15: 114172871571 | D15: 134078027031 | E15: 153344336091 | F15: 167259623393 | G15: 184152446184 | H15: 216888673984 | I15: 265341308920 | J15: 635019103068 | K15: 616094439541 | L15: 533122498296 | M15: 486311498982 | N15: 462681368864 | O15: 467305064734 | P15: 483045897315 | Q15: 509872822147 | R15: 556084188134 | S15: 46211365987 | T15: 0.09063312257 | U15: 53540 | V15: 54161 | W15: 55433 | X15: 56725 | Y15: 61617 | Z15: 67374 | AA15: 72396 | AB15: 168693 | AC15: 171003 | AD15: 171697 | AE15: 169561 | AF15: 172540 | AG15: 174961 | AH15: 178590 | AI15: 180972 | AJ15: 183986 | AK15: 3014 | AL15: 0.01665451009
B16: Innstæður í erlendum bönkum | C16: 806078816 | D16: 1288883547 | E16: 1370504708 | F16: 1184263709 | G16: 3968169187 | H16: 3270554973 | I16: 8053696977 | J16: 10017561128 | K16: 11696611051 | L16: 9395725043 | M16: 8658378958 | N16: 8750084681 | O16: 7777942874 | P16: 7768207610 | Q16: 6984745750 | R16: 8096794919 | S16: 1112049169 | T16: 0.1592111165 | U16: 629 | V16: 593 | W16: 613 | X16: 612 | Y16: 579 | Z16: 568 | AA16: 653 | AB16: 744 | AC16: 686 | AD16: 644 | AE16: 586 | AF16: 579 | AG16: 588 | AH16: 645 | AI16: 711 | AJ16: 860 | AK16: 149 | AL16: 0.2095639944
B17: Aðrar eignir | C17: 5343096445 | D17: 5933903145 | E17: 7111001887 | F17: 8825695250 | G17: 11251743357 | H17: 15967389470 | I17: 19882436909 | J17: 28430617499 | K17: 28851312187 | L17: 29093002554 | M17: 29309702938 | N17: 29621808385 | O17: 25219306240 | P17: 25316209062 | Q17: 31743904398 | R17: 25966900639 | S17: -5777003759 | T17: -0.1819878137 | U17: 11472 | V17: 12119 | W17: 13579 | X17: 14677 | Y17: 15825 | Z17: 17817 | AA17: 20038 | AB17: 22442 | AC17: 22677 | AD17: 22597 | AE17: 22980 | AF17: 23229 | AG17: 23318 | AH17: 23198 | AI17: 22217 | AJ17: 22519 | AK17: 302 | AL17: 0.0135931944
B18: Áætluð nettó eign viðbót | C18: 31279050000 | D18: 32937443790 | E18: 24513641500 | F18: 38459220000 | G18: 1127800000 | H18: - | I18: - | J18: 0 | K18: 62876478231 | L18: 62612500000 | M18: 56056500000 | N18: 91256529086 | O18: 92292700000 | P18: 57872360000 | Q18: 54186800000 | R18: 75057900000 | S18: 20871100000 | T18: 0.3851694509 | U18: 4058 | V18: 3851 | W18: 2910 | X18: 4051 | Y18: 15 | Z18: - | AA18: - | AB18: - | AC18: 6941 | AD18: 4797 | AE18: 4769 | AF18: 7329 | AG18: 6552 | AH18: 3415 | AI18: 2724 | AJ18: 2588 | AK18: -136 | AL18: -0.04992657856
B19: Áætluð viðbót við stofn | C19: 4654616000 | D19: 4944910900 | E19: 3667910553 | F19: 5767121603 | G19: 156345000 | H19: - | I19: - | J19: 0 | K19: 9420750000 | L19: 9089125000 | M19: 9544645000 | N19: 13688475000 | O19: 13843905000 | P19: 10204275000 | Q19: 8127870000 | R19: 11258685000 | S19: 3130815000 | T19: 0.3851950142 | U19: 4030 | V19: 3845 | W19: 2906 | X19: 4047 | Y19: 6 | Z19: - | AA19: - | AB19: - | AC19: 6940 | AD19: 4797 | AE19: 4769 | AF19: 7328 | AG19: 6552 | AH19: 3415 | AI19: 2723 | AJ19: 2588 | AK19: -135 | AL19: -0.04957767169
B20: Samtals | C20: 442772413053 | D20: 462985983365 | E20: 498507840321 | F20: 563547687512 | G20: 631178002961 | H20: 768366643852 | I20: 1000782774736 | J20: 1211897712641 | K20: 1300750922329 | L20: 1207530066072 | M20: 1143944254439 | N20: 1172627359356 | O20: 1177198543893 | P20: =SUM(P7:P19) -> 1177089115289 | Q20: 1250262319178 | R20: 1363787728481 | S20: 113525409303 | T20: 0.09080127231 | U20: * | V20: * | W20: * | X20: * | Y20: * | Z20: * | AA20: * | AB20: * | AC20: *
B22: Fasteignir | C22: 963652164561 | D22: 1034419086390 | E22: 1171983798135 | F22: 1364342935402 | G22: 1824205306168 | H22: 2052475783524 | I22: 2377197226628 | J22: 2436145040791 | K22: 2491852449751 | L22: 2248289509279 | M22: 2457986262290 | N22: 2679107518083 | O22: 2805241110796 | P22: 3028716231663 | Q22: 3276754485573 | R22: 3596826236873 | S22: =+R22-Q22 -> 320071751300 | T22: =+R22/Q22-1 -> 0.09767950352 | U22: 86955 | V22: 88198 | W22: 90581 | X22: 91418 | Y22: 93443 | Z22: 94537 | AA22: 96774 | AB22: 97188 | AC22: 96516 | AD22: 95168 | AE22: 94320 | AF22: 94454 | AG22: 94179 | AH22: 94724 | AI22: 95544 | AJ22: 97009 | AK22: =+AJ22-AI22 -> 1465 | AL22: =+AJ22/AI22-1 -> 0.0153332496
B24: Eignir alls | C24: 1405654831016 | D24: 1496476829281 | E24: 1669429454852 | F24: 1926713545394 | G24: 2454650934132 | H24: 2820189030345 | I24: 3379996794255 | J24: 3656775719065 | K24: 3804222320143 | L24: 3466021106380 | M24: 3611057258650 | N24: 3860526837154 | O24: 3989318569444 | P24: 4212870758995 | Q24: 4534660413357 | R24: 4968662516185 | S24: =+R24-Q24 -> 434002102828 | T24: =+R24/Q24-1 -> 0.09570774066 | U24: 124549 | V24: 125683 | W24: 127146 | X24: 128864 | Y24: 129439 | Z24: 132022 | AA24: 136797 | AB24: 169086 | AC24: 178263 | AD24: 176838 | AE24: 174787 | AF24: 180247 | AG24: 181862 | AH24: 182367 | AI24: 184056 | AJ24: 186913 | AK24: =+AJ24-AI24 -> 2857 | AL24: =+AJ24/AI24-1 -> 0.01552244969
B26: Skuldir vegna íbúðarkaupa | C26: 366625016022 | D26: 401252909580 | E26: 451475171476 | F26: 508187088605 | G26: 598735378588 | H26: 705386763105 | I26: 840494249633 | J26: 1058103560837 | K26: 1150853542871 | L26: 1151615849358 | M26: 1124165778076 | N26: 1159372169361 | O26: 1174078229443 | P26: 1181478725783 | Q26: 1145703201987 | R26: 1196371734406 | S26: =+R26-Q26 -> 50668532419 | T26: =+R26/Q26-1 -> 0.04422483269 | U26: 65372 | V26: 66749 | W26: 69137 | X26: 69400 | Y26: 69586 | Z26: 70733 | AA26: 72697 | AB26: 71257 | AC26: 70447 | AD26: 69265 | AE26: 68758 | AF26: 68736 | AG26: 68504 | AH26: 69184 | AI26: 69285 | AJ26: 70018 | AK26: =+AJ26-AI26 -> 733 | AL26: =+AJ26/AI26-1 -> 0.01057949051
B28: Skuldir | C28: 547381079192 | D28: 586488370297 | E28: 656779330814 | F28: 756837482048 | G28: 918270786907 | H28: 1113307767128 | I28: 1348079315070 | J28: 1683152720751 | K28: 1892493109576 | L28: 1878043634383 | M28: 1759359154480 | N28: 1785159523002 | O28: 1787527897830 | P28: 1767784069378 | Q28: 1719457830124 | R28: 1775053827311 | S28: =+R28-Q28 -> 55595997187 | T28: =+R28/Q28-1 -> 0.03233344617 | U28: 91717 | V28: 93678 | W28: 96481 | X28: 96803 | Y28: 98329 | Z28: 101589 | AA28: 105446 | AB28: 102606 | AC28: 135887 | AD28: 144997 | AE28: 141400 | AF28: 145337 | AG28: 146039 | AH28: 148636 | AI28: 148853 | AJ28: 149775 | AK28: =+AJ28-AI28 -> 922 | AL28: =+AJ28/AI28-1 -> 0.006194030352
B30: Eignarskattsstofn jákvæður | C30: 776991781330 | D30: 810965251340 | E30: 898446576410 | F30: 1051192458350 | G30: 1311171358680 | H30: 1444319749050 | I30: 1652359512630 | J30: 1583537767030 | K30: 1616916268800 | L30: 1431324922820 | M30: 1603538084390 | N30: 1809024905270 | O30: 1919918100190 | P30: 2099944480830 | Q30: 2385994531590 | R30: 2693143757700 | S30: =+R30-Q30 -> 307149226110 | T30: =+R30/Q30-1 -> 0.1287300629 | U30: 95944 | V30: 96442 | W30: 98419 | X30: 101242 | Y30: 104830 | Z30: 102891 | AA30: 105160 | AB30: 96496 | AC30: 94011 | AD30: 86395 | AE30: 90842 | AF30: 97981 | AG30: 100408 | AH30: 102513 | AI30: 107905 | AJ30: 112760 | AK30: =+AJ30-AI30 -> 4855 | AL30: =+AJ30/AI30-1 -> 0.04499328113
B31: Eignarskattsstofn, neikvæður | C31: 54902960558 | D31: 57023445456 | E31: 60168872522 | F31: 70005720366 | G31: 75965736100 | H31: 105503987876 | I31: 125358134271 | J31: 262670311204 | K31: 376109525136 | L31: 466375183273 | M31: 340699680162 | N31: 312791835925 | O31: 295481350479 | P31: 254252786623 | Q31: 212762576219 | R31: 191667621823 | S31: =+R31-Q31 -> -21094954396 | T31: =+R31/Q31-1 -> -0.0991478613 | U31: 24056 | V31: 25121 | W31: 25073 | X31: 24387 | Y31: 22651 | Z31: 26745 | AA31: 28060 | AB31: 37320 | AC31: 52690 | AD31: 59089 | AE31: 54499 | AF31: 53186 | AG31: 51913 | AH31: 47626 | AI31: 42069 | AJ31: 38434 | AK31: =+AJ31-AI31 -> -3635 | AL31: =+AJ31/AI31-1 -> -0.08640566688
B33: *Eignir hjóna og sambúðarfólks eru taldar fram sameiginlega og því vísa fjöldatölur til fjölda fjölskyldna sem telur fram eignir en ekki einstaklinga

Sheet Tekjur 02-17
B4: Framtöl einstaklinga 2012 til 2017
B5: Skattskyldar tekjur einstaklinga
B7: Álagningarár | H7: Tekjur einstaklinga | S7: Breytingar '16-'17 | AA7: Fjöldi framteljenda | AK7: Breytingar '16-'17
B8: (Í milljónum króna) | C8: 2002 | D8: 2003 | E8: 2004 | F8: 2005 | G8: 2006 | H8: 2007 | I8: 2008 | J8: 2009 | K8: 2010 | L8: 2011 | M8: 2012 | N8: 2013 | O8: 2014 | P8: 2015 | Q8: 2016 | R8: 2017 | S8: Milljónir kr. | T8: % | U8: 2002 | V8: 2003 | W8: 2004 | X8: 2005 | Y8: 2006 | Z8: 2007 | AA8: 2008 | AB8: 2009 | AC8: 2010 | AD8: 2011 | AE8: 2012 | AF8: 2013 | AG8: 2014 | AH8: 2015 | AI8: 2016 | AJ8: 2017 | AK8: Fjöldi | AL8: %
B9: Laun, hlunnindi, lífeyrir o.fl.:
B10: Laun, starfst.gr. o.fl. | C10: 342801884691 | D10: 370269724541 | E10: 391838033745 | F10: 417733794417 | G10: 471961701275 | H10: 535396783951 | I10: 609337661931 | J10: 662289378256 | K10: 624102522592 | L10: 635771389264 | M10: 678448222636 | N10: 729234996394 | O10: 783344236359 | P10: 837925927208 | Q10: 922796252304 | R10: 1024451482919 | S10: =+R10-Q10 -> 101655230615 | T10: =+R10/Q10-1 -> 0.1101599951 | U10: 157804 | V10: 160505 | W10: 162767 | X10: 163592 | Y10: 167240 | Z10: 171247 | AA10: 176414 | AB10: 181682 | AC10: 177284 | AD10: 176149 | AE10: 174256 | AF10: 176941 | AG10: 179320 | AH10: 182828 | AI10: 185325 | AJ10: 189696 | AK10: =+AJ10-AI10 -> 4371 | AL10: =+AJ10/AI10-1 -> 0.02358559288
B11: Bifreiðahlunnindi | D11: - | E11: - | F11: - | G11: 2835860006 | H11: 3219128563 | I11: 3874752040 | J11: 4339751602 | K11: 4291459142 | L11: 4008011398 | M11: 3542426814 | N11: 3706036790 | O11: 3904391059 | P11: 4027846339 | Q11: 4047137614 | R11: 4157914992 | S11: 110777378 | T11: 0.02737178435 | V11: - | W11: - | X11: - | Y11: 5043 | Z11: 5528 | AA11: 6095 | AB11: 6035 | AC11: 5544 | AD11: 4746 | AE11: 4230 | AF11: 4095 | AG11: 4144 | AH11: 4194 | AI11: 4277 | AJ11: 4404 | AK11: 127 | AL11: 0.02969371054
B12: Önnur hlunnindi | D12: - | E12: - | F12: - | G12: 2683253720 | H12: 2066437951 | I12: 6748986109 | J12: 1087086185 | K12: 1463243613 | L12: 940773444 | M12: 1085277966 | N12: 1087663194 | O12: 1492351784 | P12: 1261046886 | Q12: 2152329894 | R12: 1587647807 | S12: -564682087 | T12: -0.2623585207 | V12: - | W12: - | X12: - | Y12: 14917 | Z12: 15262 | AA12: 14443 | AB12: 13487 | AC12: 11621 | AD12: 11317 | AE12: 11774 | AF12: 12281 | AG12: 11610 | AH12: 11811 | AI12: 11636 | AJ12: 10832 | AK12: -804 | AL12: -0.06909590925
B13: Ökutækjastyrkur | C13: 5218404738 | D13: 5543893221 | E13: 5761160064 | F13: 5845096377 | G13: 6322622717 | H13: 7032715324 | I13: 7458576278 | J13: 8681088289 | K13: 8106897499 | L13: 8202801678 | M13: 8956536942 | N13: 9791284546 | O13: 10265568705 | P13: 10507799685 | Q13: 10622704826 | R13: 11004231817 | S13: 381526991 | T13: 0.03591618117 | U13: 32754 | V13: 32732 | W13: 32954 | X13: 33253 | Y13: 34776 | Z13: 36507 | AA13: 37700 | AB13: 38293 | AC13: 34264 | AD13: 33932 | AE13: 34987 | AF13: 35704 | AG13: 36648 | AH13: 37815 | AI13: 38558 | AJ13: 40089 | AK13: 1531 | AL13: 0.03970641631
B14: Dagpeningar | C14: 5234893594 | D14: 5255909438 | E14: 5379671449 | F14: 5770704695 | G14: 6184140283 | H14: 7109584447 | I14: 7033766852 | J14: 8135759440 | K14: 8185906054 | L14: 8910649900 | M14: 9781569357 | N14: 10680447062 | O14: 11251841917 | P14: 10877762037 | Q14: 12065470222 | R14: 12646301088 | S14: 580830866 | T14: 0.04813992785 | U14: 22511 | V14: 22221 | W14: 23210 | X14: 23667 | Y14: 25376 | Z14: 27003 | AA14: 28703 | AB14: 26835 | AC14: 20205 | AD14: 21461 | AE14: 23220 | AF14: 24431 | AG14: 24977 | AH14: 25558 | AI14: 26346 | AJ14: 28418 | AK14: 2072 | AL14: 0.07864571472
B15: Reiknað endurgjald | C15: 17856814962 | D15: 15469806358 | E15: 15493267049 | F15: 15053849468 | G15: 15127404086 | H15: 15776632918 | I15: 16551406650 | J15: 16224643298 | K15: 15249441943 | L15: 14929949461 | M15: 15971513573 | N15: 17654431051 | O15: 18680141355 | P15: 19890967013 | Q15: 21184580236 | R15: 22910181924 | S15: 1725601688 | T15: 0.08145555252 | U15: 22380 | V15: 19817 | W15: 19080 | X15: 17750 | Y15: 17188 | Z15: 16751 | AA15: 16527 | AB15: 16579 | AC15: 16145 | AD15: 15815 | AE15: 16268 | AF15: 16938 | AG15: 16911 | AH15: 17200 | AI15: 16988 | AJ15: 16949 | AK15: -39 | AL15: -0.002295738168
B16: Greiðslur frá Tryggingastofnun | C16: 23454891766 | D16: 24801529211 | E16: 27855775336 | F16: 30460881094 | G16: 31948476303 | H16: 34144856912 | I16: 38695054049 | J16: 43823845120 | K16: 48614147172 | L16: 50301990887 | M16: 57080088561 | N16: 60343138478 | O16: 66147641433 | P16: 73712939771 | Q16: 77219742195 | R16: 86163219922 | S16: 8943477727 | T16: 0.1158185391 | U16: 45801 | V16: 45120 | W16: 46247 | X16: 46636 | Y16: 46866 | Z16: 47324 | AA16: 47580 | AB16: 48149 | AC16: 47086 | AD16: 44804 | AE16: 46052 | AF16: 47889 | AG16: 52112 | AH16: 53619 | AI16: 54965 | AJ16: 55794 | AK16: 829 | AL16: 0.01508232512
B17: Greiðslur úr lífeyrissjóðum | C17: 21575296054 | D17: 24962660461 | E17: 27791080730 | F17: 30361151872 | G17: 34150199942 | H17: 39687913466 | I17: 46280200681 | J17: 53626909636 | K17: 91775653052 | L17: 79865069877 | M17: 91416162663 | N17: 91242414276 | O17: 93759129313 | P17: 105469971958 | Q17: 103289032224 | R17: 113358647320 | S17: 10069615096 | T17: 0.09748968384 | U17: 35890 | V17: 37139 | W17: 38508 | X17: 39511 | Y17: 40596 | Z17: 41500 | AA17: 42728 | AB17: 43195 | AC17: 42613 | AD17: 42960 | AE17: 43721 | AF17: 45617 | AG17: 47157 | AH17: 49153 | AI17: 51115 | AJ17: 52639 | AK17: 1524 | AL17: 0.02981512276
B18: Séreignarlífeyrissjóðum | J18: 2129662611 | K18: 14955263722 | L18: 5579877328 | M18: 6497256399 | N18: 7230139407 | O18: 8013849243 | P18: 7563014686 | Q18: 7663311064 | R18: 8824751819 | S18: 1161440755 | T18: 0.1515586077 | AB18: 2061 | AC18: 10254 | AD18: 6162 | AE18: 6359 | AF18: 7849 | AG18: 8964 | AH18: 6601 | AI18: 6788 | AJ18: 7425 | AK18: 637 | AL18: 0.09384207425
B19: Sérstök útborgun séreignarsparnaðar | K19: 20970822646 | L19: 15856569668 | M19: 22666313685 | N19: 13663289249 | O19: 8146324480 | P19: 12598333253 | Q19: 1752562635 | R19: 34381390 | S19: -1718181245 | T19: -0.980382219 | AC19: 39184 | AD19: 29221 | AE19: 24602 | AF19: 16996 | AG19: 12087 | AH19: 15222 | AI19: 1467 | AJ19: 38 | AK19: -1429 | AL19: -0.9740967962
B20: Aðrar tekjur | C20: 2102840174 | D20: 2473761247 | E20: 3004934108 | F20: 3552293705 | G20: 3481077421 | H20: 4565256978 | I20: 6067879912 | J20: 5487506487 | K20: 6619876867 | L20: 6701185415 | M20: 7219406957 | N20: 8091109353 | O20: 8275229827 | P20: 9103930191 | Q20: 10101446744 | R20: 10208849544 | S20: 107402800 | T20: 0.01063241759 | U20: 16488 | V20: 19248 | W20: 25677 | X20: 29997 | Y20: 34745 | Z20: 36664 | AA20: 37083 | AB20: 42109 | AC20: 44364 | AD20: 47689 | AE20: 48602 | AF20: 53743 | AG20: 55543 | AH20: 59361 | AI20: 62671 | AJ20: 63031 | AK20: 360 | AL20: 0.00574428364
B21: Husaleigubætur, aðstoð og styrkir | C21: 1307929147 | D21: 905097626 | E21: 1013964427 | F21: 1016221052 | G21: 970960529 | H21: 1023730655 | I21: 979901138 | J21: 1205480125 | K21: 1819916772 | L21: 2387560476 | M21: 2745545223 | N21: 3106034632 | O21: 3555834782 | P21: 3699845826 | Q21: 3412029560 | R21: 2628918033 | S21: -783111527 | T21: -0.2295148718 | U21: 8678 | V21: 4408 | W21: 4694 | X21: 4022 | Y21: 3413 | Z21: 3478 | AA21: 3090 | AB21: 3639 | AC21: 4278 | AD21: 5158 | AE21: 5495 | AF21: 5436 | AG21: 5742 | AH21: 5518 | AI21: 4862 | AJ21: 3865 | AK21: -997 | AL21: -0.2050596462
B22: Atvinnuleysisbætur | C22: 1148446376 | D22: 2299472737 | E22: 3317185565 | F22: 3458316532 | G22: 2417090516 | H22: 1824904570 | I22: 1745243964 | J22: 3699095431 | K22: 20520107686 | L22: 19372976202 | M22: 18727082673 | N22: 16115665813 | O22: 12348366725 | P22: 10713494701 | Q22: 8770897942 | R22: 7780334303 | S22: -990563639 | T22: -0.1129375402 | U22: 7293 | V22: 10298 | W22: 12759 | X22: 11380 | Y22: 8363 | Z22: 5809 | AA22: 4560 | AB22: 10370 | AC22: 27638 | AD22: 25118 | AE22: 22352 | AF22: 19896 | AG22: 15607 | AH22: 13459 | AI22: 10864 | AJ22: 9722 | AK22: -1142 | AL22: -0.1051178203
B23: Styrkir vegna náms og vísindstarfa o.fl. | C23: 459567254 | D23: 573819815 | E23: 707495252 | F23: 857835444 | G23: 945748442 | H23: 1090435064 | I23: 1264478051 | J23: 1344862384 | K23: 1468953579 | L23: 1375711700 | M23: 1746586057 | N23: 1878363454 | O23: 1966149819 | P23: 2351467313 | Q23: 2549154070 | R23: 2912777764 | S23: 363623694 | T23: 0.1426448477 | U23: 8003 | V23: 10382 | W23: 13141 | X23: 15454 | Y23: 16630 | Z23: 18179 | AA23: 18694 | AB23: 18375 | AC23: 20552 | AD23: 16414 | AE23: 19631 | AF23: 22285 | AG23: 22070 | AH23: 24145 | AI23: 25468 | AJ23: 26496 | AK23: 1028 | AL23: 0.04036437883
B24: Tekjur erlendis frá | C24: 118343795 | D24: 100002239 | E24: 128883290 | F24: 121661098 | G24: 141345490 | H24: 224196132 | I24: 228007375 | J24: 338016907 | K24: 606798081 | L24: 490308892 | M24: 507859882 | N24: 500680903 | O24: 583564323 | P24: 483184196 | Q24: 356471419 | R24: 512316511 | S24: 155845092 | T24: 0.4371881831 | U24: 121 | V24: 108 | W24: 114 | X24: 103 | Y24: 150 | Z24: 177 | AA24: 204 | AB24: 218 | AC24: 265 | AD24: 247 | AE24: 248 | AF24: 227 | AG24: 275 | AH24: 231 | AI24: 247 | AJ24: 345 | AK24: 98 | AL24: 0.3967611336
B25: Tekjur látins maka | H25: 0 | I25: 0 | J25: 43334337 | K25: 4922336 | L25: 7439040 | M25: 160000 | N25: 4907 | O25: 183638 | P25: 1407258 | Q25: 1015988 | R25: 529195 | S25: -486793 | T25: -0.4791326276 | Z25: 0 | AA25: 0 | AB25: 17 | AC25: 5 | AD25: 7 | AE25: 1 | AF25: 1 | AG25: 4 | AH25: 5 | AI25: 7 | AJ25: 6 | AK25: -1 | AL25: -0.1428571429
B26: Bakfærður frádráttur v/hlutabréfakaupa | C26: 38440715 | D26: 41714651 | E26: 27190054 | F26: 19102140 | G26: 17104844 | H26: 2197665 | I26: 2418923 | J26: 0 | K26: 0 | L26: 0 | M26: 0 | N26: 0 | S26: 0 | U26: 344 | V26: 375 | W26: 236 | X26: 150 | Y26: 55 | Z26: 18 | AA26: 1 | AB26: 0 | AC26: 0 | AD26: 0 | AE26: 0 | AK26: 0
B27: Samtals: | C27: 421317753266 | D27: 452697391545 | E27: 482318641069 | F27: 514250907894 | G27: 573667871848 | H27: 647879208082 | I27: 735644595804 | J27: 804899919710 | K27: 827075143633 | L27: 828317032792 | M27: 893206412250 | N27: 949424149502 | O27: 1011235057388 | P27: 1085745957379 | Q27: 1173615633822 | R27: 1295829076233 | S27: 122213442411 | T27: 0.1041341295 | U27: 197336 | V27: 199865 | W27: 204113 | X27: 204738 | Y27: 208805 | Z27: 213685 | AA27: 218666 | AB27: 225123 | AC27: 226946 | AD27: 227259 | AE27: 225933 | AF27: 229351 | AG27: 232115 | AH27: 236197 | AI27: 238845 | AJ27: 242728 | AK27: 3883 | AL27: 0.01625740543
B29: Hreinar tekjur af atvinnurekstri | C29: 8811831926 | D29: 5889750844 | E29: 5600372546 | F29: 5637368711 | G29: 6335308701 | H29: 7064204283 | I29: 7648365108 | J29: 6989799137 | K29: 6641852342 | L29: 6408532684 | M29: 7566800402 | N29: 8535331084 | O29: 9156540379 | P29: 10105198055 | Q29: 11153996218 | R29: 12479816963 | S29: =+R29-Q29 -> 1325820745 | T29: =+R29/Q29-1 -> 0.1188650883 | U29: 15630 | V29: 14183 | W29: 13802 | X29: 13171 | Y29: 13415 | Z29: 13243 | AA29: 12927 | AB29: 12893 | AC29: 12467 | AD29: 12435 | AE29: 13098 | AF29: 13933 | AG29: 14228 | AH29: 14783 | AI29: 14809 | AJ29: 14866 | AK29: =+AJ29-AI29 -> 57 | AL29: =+AJ29/AI29-1 -> 0.003849010737
B31: Áætlun
B32: Áætlaður tekjuskattstofn viðbót | C32: 31076941644 | D32: 32148032894 | E32: 26240277766 | F32: 39087603345 | G32: 39061434893 | H32: 44630377002 | I32: 51624788722 | J32: 45984064558 | K32: 34418629521 | L32: 33222293597 | M32: 35612510768 | N32: 32244904991 | O32: 30121709397 | P32: 32494439121 | Q32: 33584182096 | R32: 44298157557 | S32: =+R32-Q32 -> 10713975461 | T32: =+R32/Q32-1 -> 0.3190185019 | U32: 13123 | V32: 11777 | W32: 10225 | X32: 13586 | Y32: 13626 | Z32: 14490 | AA32: 16231 | AB32: 12615 | AC32: 8992 | AD32: 10190 | AE32: 11608 | AF32: 10239 | AG32: 8318 | AH32: 8658 | AI32: 8506 | AJ32: 10728 | AK32: =+AJ32-AI32 -> 2222 | AL32: =+AJ32/AI32-1 -> 0.2612273689
B33: Áætlað álag á tekjuskattstofn | C33: 2275535820 | D33: 2636255795 | E33: 2242636475 | F33: 3144873656 | G33: 2924424115 | H33: 3252670109 | I33: 3526244942 | J33: 3269302044 | K33: 2778906565 | L33: 2741978348 | M33: 2556442478 | N33: 2391428492 | O33: 2253234189 | P33: 2392504180 | Q33: 2485678658 | R33: 3061034956 | S33: =+R33-Q33 -> 575356298 | T33: =+R33/Q33-1 -> 0.231468495 | U33: 12293 | V33: 11588 | W33: 9348 | X33: 12708 | Y33: 12634 | Z33: 14443 | AA33: 16206 | AB33: 12553 | AC33: 8947 | AD33: 10184 | AE33: 11611 | AF33: 9341 | AG33: 7890 | AH33: 8035 | AI33: 8051 | AJ33: 10130 | AK33: =+AJ33-AI33 -> 2079 | AL33: =+AJ33/AI33-1 -> 0.2582287915
B34: Samtals: | C34: 33352477464 | D34: 34784288689 | E34: 28482914241 | F34: 42232477001 | G34: 41985859008 | H34: 47883047111 | I34: 55151033664 | J34: 49253366602 | K34: 37197536086 | L34: 35964271945 | M34: 38168953246 | N34: 34636333483 | O34: 32374943586 | P34: =SUM(P32:P33) -> 34886943301 | Q34: 36069860754 | R34: 47359192513 | S34: =+R34-Q34 -> 11289331759 | T34: =+R34/Q34-1 -> 0.3129851772 | U34: 13123 | V34: 11779 | W34: 10225 | X34: 13587 | Y34: 13637 | Z34: 14499 | AA34: 16233 | AB34: 12619 | AC34: 9071 | AD34: 10190 | AE34: 11614 | AF34: 10240 | AG34: 8318 | AH34: 8658 | AI34: 8506 | AJ34: 10728 | AK34: =+AJ34-AI34 -> 2222 | AL34: =+AJ34/AI34-1 -> 0.2612273689
B36: Frádráttur frá launum o.fl.
B37: Kostnaður á móti ökutækjastyrk | C37: 3395262452 | D37: 3655063196 | E37: 3724390837 | F37: 3668928868 | G37: 3953301599 | H37: 4238880495 | I37: 4669107458 | J37: 5510809427 | K37: 5478410348 | L37: 5746679172 | M37: 6366287215 | N37: 6878581867 | O37: 7202646749 | P37: 7119339846 | Q37: 7375293298 | R37: 7570602084 | S37: =+R37-Q37 -> 195308786 | T37: =+R37/Q37-1 -> 0.02648149411 | U37: 26640 | V37: 27220 | W37: 27829 | X37: 27996 | Y37: 29115 | Z37: 30641 | AA37: 32004 | AB37: 32207 | AC37: 29272 | AD37: 30799 | AE37: 31573 | AF37: 32204 | AG37: 32921 | AH37: 32347 | AI37: 33532 | AJ37: 34441 | AK37: =+AJ37-AI37 -> 909 | AL37: =+AJ37/AI37-1 -> 0.02710843373
B38: Frádráttur vegna dagpeninga | C38: 4941776175 | D38: 4954614078 | E38: 5105566080 | F38: 5482795592 | G38: 5683952253 | H38: 6390448086 | I38: 6398546590 | J38: 7826689746 | K38: 7915503282 | L38: 8714751805 | M38: 9574625201 | N38: 10448130047 | O38: 11033828934 | P38: 10639465501 | Q38: 11762789488 | R38: 12295236948 | S38: =+R38-Q38 -> 532447460 | T38: =+R38/Q38-1 -> 0.04526540754 | U38: 20698 | V38: 20262 | W38: 21087 | X38: 21504 | Y38: 22599 | Z38: 23459 | AA38: 24740 | AB38: 26577 | AC38: 20007 | AD38: 21361 | AE38: 23138 | AF38: 24360 | AG38: 24892 | AH38: 25469 | AI38: 26227 | AJ38: 28301 | AK38: =+AJ38-AI38 -> 2074 | AL38: =+AJ38/AI38-1 -> 0.07907881191
B39: Frádregið iðgjald í lífeyrissjóð | C39: 13512899600 | D39: 14618639815 | E39: 15560402754 | F39: 16535051632 | G39: 18561794910 | H39: 21306345916 | I39: 24054351792 | J39: 26379175951 | K39: 25543081349 | L39: 25987250581 | M39: 27708070586 | N39: 29609452122 | O39: 31592804433 | P39: 33735108478 | Q39: 37089335208 | R39: 41153907731 | S39: =+R39-Q39 -> 4064572523 | T39: =+R39/Q39-1 -> 0.1095887133 | U39: 160533 | V39: 162619 | W39: 165752 | X39: 166060 | Y39: 170010 | Z39: 173687 | AA39: 178101 | AB39: 182862 | AC39: 182585 | AD39: 181927 | AE39: 180473 | AF39: 182789 | AG39: 183827 | AH39: 186766 | AI39: 188330 | AJ39: 192016 | AK39: =+AJ39-AI39 -> 3686 | AL39: =+AJ39/AI39-1 -> 0.01957202782
B40: Frádregið iðgjald í lífeyrissjóð, 4% | C40: 4260688142 | D40: 5799575156 | E40: 6799653367 | F40: 7626050331 | G40: 9520760800 | H40: 11189195136 | I40: 12940525737 | J40: 14230030288 | K40: 12682393396 | L40: 12822866016 | M40: 13679277374 | N40: 8902849114 | O40: 9618026697 | P40: 14614089134 | Q40: 20930660076 | R40: 23586671550 | S40: =+R40-Q40 -> 2656011474 | T40: =+R40/Q40-1 -> 0.126895734 | U40: 59901 | V40: 70566 | W40: 77107 | X40: 83400 | Y40: 94752 | Z40: 98995 | AA40: 102847 | AB40: 104915 | AC40: 95497 | AD40: 89462 | AE40: 89101 | AF40: 109406 | AG40: 111897 | AH40: 120544 | AI40: 103825 | AJ40: 108021 | AK40: =+AJ40-AI40 -> 4196 | AL40: =+AJ40/AI40-1 -> 0.04041415844
B41: Fjárfesting í atvinnurekstri | C41: 823026448 | D41: 606224561 | E41: 0 | F41: 0 | G41: 0 | H41: 0 | I41: 0 | J41: 0 | U41: 7793 | V41: 5518 | W41: 0 | X41: 0 | Y41: 0 | Z41: 0 | AA41: 0 | AB41: 0
B42: Frádráttur vegna náms og vísindastyrkja | C42: 298385031 | D42: 389571594 | E42: 457133328 | F42: 566005740 | G42: 622435643 | H42: 699653248 | I42: 800119776 | J42: 830898491 | K42: 837085050 | L42: 882266165 | M42: 1173795945 | N42: 1218008229 | O42: 1269802867 | P42: 1461738268 | Q42: 1594360411 | R42: 1822934586 | S42: =+R42-Q42 -> 228574175 | T42: =+R42/Q42-1 -> 0.1433641813 | U42: 5683 | V42: 7328 | W42: 8962 | X42: 10553 | Y42: 10981 | Z42: 11552 | AA42: 11835 | AB42: 11010 | AC42: 10861 | AD42: 9697 | AE42: 11460 | AF42: 12763 | AG42: 12596 | AH42: 13371 | AI42: 13834 | AJ42: 14607 | AK42: =+AJ42-AI42 -> 773 | AL42: =+AJ42/AI42-1 -> 0.05587682521
B43: Frádráttur vegna annarra styrkja | C43: 145282654 | D43: 213573507 | E43: 301429334 | F43: 310955182 | G43: 300671321 | H43: 408788659 | I43: 483686083 | J43: 523784133 | K43: 492513786 | L43: 778849173 | M43: 936519228 | N43: 1394260981 | O43: 1538191482 | P43: 1717259491 | Q43: 2000348679 | R43: 2177201572 | S43: =+R43-Q43 -> 176852893 | T43: =+R43/Q43-1 -> 0.08841103296 | U43: 1974 | V43: 4396 | W43: 7373 | X43: 6926 | Y43: 5503 | Z43: 4849 | AA43: 5355 | AB43: 5455 | AC43: 4796 | AD43: 9697 | AE43: 11722 | AF43: 24806 | AG43: 30379 | AH43: 34727 | AI43: 37272 | AJ43: 38338 | AK43: =+AJ43-AI43 -> 1066 | AL43: =+AJ43/AI43-1 -> 0.02860055806
B44: Frádráttur vegna viðhalds fasteigna | L44: 1588224047 | M44: 1437130729 | AD44: 18116 | AE44: 18737
B45: Samtals: | C45: 27377320502 | D45: 30237261907 | E45: 31948575700 | F45: 34189787345 | G45: 38642916526 | H45: 44233311540 | I45: 49629743549 | J45: 55301388036 | K45: 52948987211 | L45: =SUM(L37:L44) -> 56520886959 | M45: 60875706278 | N45: 58451282360 | O45: 62255301162 | P45: =SUM(P37:P43) -> 69287000718 | Q45: 80752787160 | R45: 88624569146 | S45: =+R45-Q45 -> 7871781986 | T45: =+R45/Q45-1 -> 0.09748000364 | U45: 162313 | V45: 164243 | W45: 166796 | X45: 167138 | Y45: 170915 | Z45: 174723 | AA45: 179232 | AB45: 184103 | AC45: 183746 | AD45: 187876 | AE45: 187022 | AF45: 184127 | AG45: 185285 | AH45: 188436 | AI45: 189928 | AJ45: 193712 | AK45: =+AJ45-AI45 -> 3784 | AL45: =+AJ45/AI45-1 -> 0.01992333937
B47: Lækkun skv. 66. gr. | C47: 1647464695 | D47: 1899391441 | E47: 1112823515 | F47: 1112234606 | G47: 1077980911 | H47: 1078611871 | I47: 1122451809 | J47: 1430380936 | K47: 1651664462 | L47: 1743320270 | M47: 1977601131 | N47: 2394743909 | O47: 2454852401 | P47: 2422066327 | Q47: 2159484221 | R47: 2161234253 | S47: =+R47-Q47 -> 1750032 | T47: =+R47/Q47-1 -> 0.0008103935111 | U47: 10286 | V47: 11449 | W47: 11262 | X47: 10875 | Y47: 10144 | Z47: 9346 | AA47: 8763 | AB47: 9980 | AC47: 11306 | AD47: 11267 | AE47: 12455 | AF47: 15872 | AG47: 15385 | AH47: 14715 | AI47: 13197 | AJ47: 12375 | AK47: =+AJ47-AI47 -> -822 | AL47: =+AJ47/AI47-1 -> -0.06228688338
B49: Tekjuskatts- og útsvarsstofn | C49: 434464591154 | D49: 461242906646 | E49: 483343616865 | F49: 526821953864 | G49: 582278407912 | H49: 657518919269 | I49: 747986323039 | J49: 804419080005 | K49: 816320952663 | L49: 812448300864 | M49: 876103706463 | N49: 931758035628 | O49: 988071679591 | P49: 1059042098081 | Q49: 1137936284437 | R49: 1264895469813 | S49: =+R49-Q49 -> 126959185376 | T49: =+R49/Q49-1 -> 0.1115696785 | U49: 210500 | V49: 211666 | W49: 214371 | X49: 218364 | Y49: 222486 | Z49: 228191 | AA49: 234927 | AB49: 237686 | AC49: 235976 | AD49: 237450 | AE49: 237586 | AF49: 239631 | AG49: 240439 | AH49: 244869 | AI49: 247374 | AJ49: 253488 | AK49: =+AJ49-AI49 -> 6114 | AL49: =+AJ49/AI49-1 -> 0.0247156128
B50: Neikvæður | C50: 7313695 | D50: 8128926 | E50: 3088224 | F50: 3222209 | G50: 10265792 | H50: 1230465 | I50: 8126407 | J50: 7763528 | K50: 7072275 | L50: 22318970 | M50: 14847974 | N50: 8247828 | O50: 15291801 | P50: -13066391 | Q50: -9065024 | R50: -13187503 | S50: =+R50-Q50 -> -4122479 | T50: =+R50/Q50-1 -> 0.454767577 | U50: 51 | V50: 47 | W50: 23 | X50: 22 | Y50: 25 | Z50: 28 | AA50: 36 | AB50: 50 | AC50: 39 | AD50: 167 | AE50: 150 | AF50: 48 | AG50: 71 | AH50: 61 | AI50: 38 | AJ50: 58 | AK50: =+AJ50-AI50 -> 20 | AL50: =+AJ50/AI50-1 -> 0.5263157895
B52: Fjármagnstekjur | C52: 41256839547 | D52: 45527528760 | E52: 63836513699 | F52: 74597413502 | G52: 119979734134 | H52: 159645146170 | I52: 244246065236 | J52: 194443128744 | K52: 139270902092 | L52: =+'[1]Fjármagnstekjur 02-10'!L30 -> 66288549730 | M52: 59090628448 | N52: 64828515375 | O52: 78521006241 | P52: 90538845029 | Q52: 95333135860 | R52: 117042399135 | S52: =+R52-Q52 -> 21709263275 | T52: =+R52/Q52-1 -> 0.2277200165 | U52: 76128 | V52: 74436 | W52: 76924 | X52: 77080 | Y52: 84680 | Z52: 93078 | AA52: 98738 | AB52: 184626 | AC52: 182699 | AD52: 46768 | AE52: 39066 | AF52: 41675 | AG52: 44990 | AH52: 38780 | AI52: 39191 | AJ52: 42964 | AK52: =+AJ52-AI52 -> 3773 | AL52: =+AJ52/AI52-1 -> 0.09627210329
B54: Skattskyldar tekjur samtals | C54: =+C49+C52 -> 475721430701 | D54: 506770435406 | E54: 547180130564 | F54: 601419367366 | G54: 702258142046 | H54: 817164065439 | I54: 992232388275 | J54: =+J52+J49 -> 998862208749 | K54: 955591854755 | L54: 878736850594 | M54: 935194334911 | N54: 996586551003 | O54: 1066592685832 | P54: 1149580943110 | Q54: 1233269420297 | R54: 1381937868948 | S54: =+R54-Q54 -> 148668448651 | T54: =+R54/Q54-1 -> 0.1205482324
B55: Fjöldi framteljenda á grunnskrá | U55: 224914 | V55: 226462 | W55: 229665 | X55: 234437 | Y55: 241344 | Z55: 253911 | AA55: 264766 | AB55: 267494 | AC55: 261436 | AD55: =245424+15340 -> 260764 | AE55: =244720+17044 -> 261764 | AF55: 264193 | AG55: 268451 | AH55: 271806 | AI55: 277606 | AJ55: 286728 | AK55: =+AJ55-AI55 -> 9122 | AL55: =+AJ55/AI55-1 -> 0.03285952033

Sheet Fjármagnstekjur 02-17
B3: Framtöl einstaklinga 2012 til 2017
B5: Álagningarár | H5: Fjármagnstekjur | S5: Breyting '16-'17 | Z5: Fjöldi | AK5: Breyting '16-'17
B6: Upphæðir í milljónum króna | C6: 2002 | D6: 2003 | E6: 2004 | F6: 2005 | G6: 2006 | H6: 2007 | I6: 2008 | J6: 2009 | K6: 2010 | L6: 2011 | M6: 2012 | N6: 2013 | O6: 2014 | P6: 2015 | Q6: 2016 | R6: 2017 | S6: Milljónir lr. | T6: % | U6: 2002 | V6: 2003 | W6: 2004 | X6: 2005 | Y6: 2006 | Z6: 2007 | AA6: 2008 | AB6: 2009 | AC6: 2010 | AD6: 2011 | AE6: 2012 | AF6: 2013 | AG6: 2014 | AH6: 2015 | AI6: 2016 | AJ6: 2017 | AK6: Fjöldi | AL6: %
B8: Arður og vextir af stofnsjóðsinneign
B9: Arður af hlutabréfum | C9: 7111342427 | D9: 8051670553 | E9: 11517763715 | F9: 14449774196 | G9: 24652412014 | H9: 34331380730 | I9: 41820282546 | J9: 48855678942 | K9: 34677896714 | L9: 11809026518 | M9: 12328099730 | N9: 15415813972 | O9: 17771433441 | P9: 28191663692 | Q9: 33261370373 | R9: 42125478285 | S9: =+R9-Q9 -> 8864107912 | T9: =+R9/Q9-1 -> 0.2664985782 | U9: 38327 | V9: 35535 | W9: 36458 | X9: 36830 | Y9: 40912 | Z9: 43359 | AA9: 42631 | AB9: 37317 | AC9: 5725 | AD9: 5408 | AE9: 6884 | AF9: 9895 | AG9: 12350 | AH9: 13007 | AI9: 13757 | AJ9: 14430 | AK9: =+AJ9-AI9 -> 673 | AL9: =+AJ9/AI9-1 -> 0.04892054954
B10: Arður af erlendum hlutabréfum | C10: 327847478 | D10: 454538107 | E10: 897361782 | F10: 1409659247 | G10: 1350267057 | H10: 3112261408 | I10: 2130037985 | J10: 3564052826 | K10: 6524158691 | L10: 339541089 | M10: 657084883 | N10: 1310530903 | O10: 1412936975 | P10: 1274248258 | Q10: 1518300413 | R10: 1193546763 | S10: =+R10-Q10 -> -324753650 | T10: =+R10/Q10-1 -> -0.2138928813 | U10: 300 | V10: 315 | W10: 387 | X10: 493 | Y10: 492 | Z10: 531 | AA10: 580 | AB10: 891 | AC10: 256 | AD10: 166 | AE10: 241 | AF10: 205 | AG10: 283 | AH10: 252 | AI10: 288 | AJ10: 286 | AK10: =+AJ10-AI10 -> -2 | AL10: =+AJ10/AI10-1 -> -0.006944444444
B11: Samtals: | C11: 7122803431 | D11: =SUM(D9:D10) -> 8506208660 | E11: =SUM(E9:E10) -> 12415125497 | F11: =SUM(F9:F10) -> 15859433443 | G11: =SUM(G9:G10) -> 26002679071 | H11: =SUM(H9:H10) -> 37443642138 | I11: 43950320531 | J11: =SUM(J9:J10) -> 52419731768 | K11: 41202055405 | L11: 12148567607 | M11: 12985184613 | N11: 16726344875 | O11: 19184370416 | P11: =SUM(P9:P10) -> 29465911950 | Q11: =SUM(Q9:Q10) -> 34779670786 | R11: =SUM(R9:R10) -> 43319025048 | S11: =+R11-Q11 -> 8539354262 | T11: =+R11/Q11-1 -> 0.2455271735 | U11: * | V11: * | W11: * | X11: * | Y11: * | Z11: * | AA11: * | AB11: *
B13: Vaxtatekjur
B14: Vextir af innstæðum barna | C14: 69273229 | D14: 49470554 | E14: 57368948 | F14: 65071635 | G14: 84823929 | H14: 116619231 | I14: 156946970 | J14: 2246155094 | K14: 1897721108 | L14: 865195484 | M14: 1010416533 | N14: 858856764 | O14: 763846330 | P14: 438183547 | Q14: 570612629 | R14: 605260893 | S14: =+R14-Q14 -> 34648264 | T14: =+R14/Q14-1 -> 0.06072116571 | U14: 4040 | V14: 3877 | W14: 3856 | X14: 3666 | Y14: 3821 | Z14: 3441 | AA14: 3285 | AB14: 35879 | AC14: 35549 | AD14: 34722 | AE14: 35900 | AF14: 35510 | AG14: 35378 | AH14: 35087 | AI14: 35492 | AJ14: 35075 | AK14: =+AJ14-AI14 -> -417 | AL14: =+AJ14/AI14-1 -> -0.01174912656
B15: Vextir af innstæðum í bönkum | C15: 10649460695 | D15: 8137034101 | E15: 7347196670 | F15: 8658134387 | G15: 11153913504 | H15: 18283218611 | I15: 24979340844 | J15: 74196943331 | K15: 66838275619 | L15: 27817346723 | M15: 18087682188 | N15: 17754649750 | O15: 17328753474 | P15: 14487857670 | Q15: 14947087449 | R15: 18053553603 | S15: 3106466154 | T15: 0.2078308677 | U15: 52929 | V15: 53071 | W15: 53888 | X15: 55360 | Y15: 60663 | Z15: 67214 | AA15: 72434 | AB15: 168989 | AC15: 171247 | AD15: 171769 | AE15: 169602 | AF15: 172787 | AG15: 175216 | AH15: 178792 | AI15: 181138 | AJ15: 184225 | AK15: 3087 | AL15: 0.01704225508
B16: Vextir af innlendum og erlendum verðbréfum | D16: =+D17+D18+D19 -> 5008629269 | E16: =+E17+E18+E19 -> 6713189068 | F16: =+F17+F18+F19 -> 10585355837 | G16: 12754285885 | H16: 16760340344 | I16: 19509890239 | J16: 32978983169 | K16: 10009479663 | L16: 11799525281 | M16: 11173419810 | N16: 11803566234 | O16: 12994480223 | P16: 10904154896 | Q16: 11985314162 | R16: 11520343967 | S16: -464970195 | T16: -0.03879499433 | V16: - | W16: - | X16: - | Y16: 13207 | Z16: 15810 | AA16: 19052 | AB16: 15985 | AC16: 11051 | AD16: 41970 | AE16: 52807 | AF16: 46014 | AG16: 44661 | AH16: 47467 | AI16: 42986 | AJ16: 53296 | AK16: 10310 | AL16: 0.2398455311
B17: Vextir af útistandandi skuldir/verðbr. | C17: 2550559364 | D17: 2806105117 | E17: 3932974439 | F17: 6423505724 | G17: - | H17: - | I17: - | J17: - | K17: - | L17: - | S17: 0 | U17: 6745 | V17: 5088 | W17: 6841 | X17: 6084 | Y17: - | Z17: - | AA17: - | AB17: - | AC17: - | AD17: - | AK17: 0
B18: Vextir af skattfrjálsum verðbréfum | C18: 1914215832 | D18: 2190042104 | E18: 2768947764 | F18: 4149469745 | G18: - | H18: - | I18: - | J18: - | K18: - | L18: - | S18: 0 | U18: 6642 | V18: 7756 | W18: 8544 | X18: 8152 | Y18: - | Z18: - | AA18: - | AB18: - | AC18: - | AD18: - | AK18: 0
B19: Vextir af stofnsjóðsinneign | C19: 11461004 | D19: 12482048 | E19: 11266865 | F19: 12380368 | G19: - | H19: - | I19: - | J19: - | K19: - | L19: - | S19: 0 | U19: 2361 | V19: 1879 | W19: 2051 | X19: 1835 | Y19: - | Z19: - | AA19: - | AB19: - | AC19: - | AD19: - | AK19: 0
B20: Samtals: | C20: 15183509120 | D20: =SUM(D14:D19) -> 18203763193 | E20: =+E14+E15+E16 -> 14117754686 | F20: =+F14+F15+F16 -> 19308561859 | G20: =+G14+G15+G16 -> 23993023318 | H20: =SUM(H14:H19) -> 35160178186 | I20: 44646178053 | J20: =SUM(J14:J19) -> 109422081594 | K20: 78745476390 | L20: 40482067488 | M20: 30271518531 | N20: 30417072748 | O20: 31087080027 | P20: =SUM(P14:P16) -> 25830196113 | Q20: =SUM(Q14:Q16) -> 27503014240 | R20: =SUM(R14:R16) -> 30179158463 | S20: 2676144223 | T20: 0.09730367005 | U20: * | V20: * | W20: * | X20: * | Y20: * | Z20: * | AA20: * | AB20: *
B22: Leigutekjur | C22: 1825214438 | D22: 2101955883 | E22: 2555435681 | F22: 2724707972 | G22: 3069543762 | H22: 3519711524 | I22: 4337718246 | J22: 5358441997 | K22: =3284597003+2799314843 -> 6083911846 | L22: =5915102838+605090214 -> 6520193052 | M22: =6997703859+568141724 -> 7565845583 | N22: 9129892208 | O22: 8983951156 | P22: 8887468542 | Q22: 9779417351 | R22: 11179608537 | S22: =+R22-Q22 -> 1400191186 | T22: =+R22/Q22-1 -> 0.1431773628 | U22: 4837 | V22: 5128 | W22: 5621 | X22: 5694 | Y22: 5643 | Z22: 5944 | AA22: 6464 | AB22: 7061 | AC22: 6491 | AD22: 6963 | AE22: 7797 | AF22: 7553 | AG22: 7889 | AH22: 7095 | AI22: 7134 | AJ22: 7283 | AK22: =+AJ22-AI22 -> 149 | AL22: =+AJ22/AI22-1 -> 0.02088589851
B24: Söluhagnaður
B25: Hagnaður af sölu hlutabréfa | C25: 16004607322 | D25: 21526028927 | E25: 32737409626 | F25: 34854337638 | G25: 62763705013 | H25: 76641946749 | I25: 142465489502 | J25: 23147679495 | K25: 10755311962 | L25: 5409467531 | M25: 6219485603 | N25: 7052326829 | O25: 17504282248 | P25: 24582109155 | Q25: 20786313517 | R25: 28737510920 | S25: =+R25-Q25 -> 7951197403 | T25: =+R25/Q25-1 -> 0.3825208061 | U25: 4503 | V25: 5401 | W25: 8855 | X25: 11434 | Y25: 9079 | Z25: 9717 | AA25: 11512 | AB25: 4985 | AC25: 1347 | AD25: 823 | AE25: 990 | AF25: 1737 | AG25: 3514 | AH25: 3057 | AI25: 3551 | AJ25: 3682 | AK25: =+AJ25-AI25 -> 131 | AL25: =+AJ25/AI25-1 -> 0.03689101662
B26: Annar söluhagnaður | C26: 1120705236 | D26: 592280920 | E26: 2010788209 | F26: 1850372590 | G26: 4150782970 | H26: 6879667573 | I26: 8846358904 | J26: 4095193890 | K26: 2484146489 | L26: 1728254052 | M26: 2048594118 | N26: 1502878715 | O26: 1688761598 | P26: 1773159269 | Q26: 2484719966 | R26: 3627096167 | S26: =+R26-Q26 -> 1142376201 | T26: =+R26/Q26-1 -> 0.4597605431 | U26: 554 | V26: 632 | W26: 775 | X26: 910 | Y26: 1122 | Z26: 1286 | AA26: 1375 | AB26: 913 | AC26: 670 | AD26: 467 | AE26: 374 | AF26: 442 | AG26: 435 | AH26: 537 | AI26: 642 | AJ26: 742 | AK26: =+AJ26-AI26 -> 100 | AL26: =+AJ26/AI26-1 -> 0.1557632399
B27: Samtals: | C27: 17125312558 | D27: =SUM(D25:D26) -> 22118309847 | E27: 34748197835 | F27: 36704710228 | G27: 66914487983 | H27: 83521614322 | I27: 151311848406 | J27: =SUM(J25:J26) -> 27242873385 | K27: 13239458451 | L27: 7137721583 | M27: 8268079721 | N27: 8555205544 | O27: 19193043846 | P27: =SUM(P25:P26) -> 26355268424 | Q27: =SUM(Q25:Q26) -> 23271033483 | R27: =SUM(R25:R26) -> 32364607087 | S27: =+R27-Q27 -> 9093573604 | T27: =+R27/Q27-1 -> 0.3907679309 | U27: * | V27: * | W27: * | X27: * | Y27: * | Z27: * | AA27: * | AB27: *
B29: Fjármagnstekjur samtals | C29: =+C27+C22+C20+C11 -> 41256839547 | D29: =+D27+D22+D20+D11 -> 50930237583 | E29: 63836513699 | F29: 74597413502 | G29: 119979734134 | H29: 159645146170 | I29: 244246065236 | J29: 194443128744 | K29: 139270902092 | L29: 66288549730 | M29: 59090628448 | N29: 64828515375 | O29: 78448445445 | P29: 90538845029 | Q29: 95333135860 | R29: 117042399135 | S29: =+R29-Q29 -> 21709263275 | T29: =+R29/Q29-1 -> 0.2277200165
B30: Greiðendur fjármagnstekjuskatts | U30: 76128 | V30: 74436 | W30: 76924 | X30: 77080 | Y30: 84680 | Z30: 93078 | AA30: 98738 | AB30: 184626 | AC30: 182699 | AD30: 46768 | AE30: 39066 | AF30: 41675 | AG30: 44990 | AH30: 38780 | AI30: 39191 | AJ30: 42964 | AK30: =+AJ30-AI30 -> 3773 | AL30: =+AJ30/AI30-1 -> 0.09627210329
B33: *Fjármagnstekjur eru taldar fram af því hjóna sem hefur hærri tekjur og því vísa tölur um fjölda framteljenda með fjármagnstekjur til fjölda fjölskyldna en ekki einstaklinga.

Sheet Álagning 02-17
B2: Opinber gjöld einstaklinga 2012 til 2017
B4: Álagningarár | G4: Álögð gjöld | S4: Breyting '16-'17 | Y4: Fjöldi gjaldenda | AK4: Breytingar '16-'17
B5: (Í milljónum króna) | C5: 2002 | D5: 2003 | E5: 2004 | F5: 2005 | G5: 2006 | H5: 2007 | I5: 2008 | J5: 2009 | K5: 2010 | L5: 2011 | M5: 2012 | N5: 2013 | O5: 2014 | P5: 2015 | Q5: 2016 | R5: 2017 | S5: Milljónir | T5: % | U5: 2002 | V5: 2003 | W5: 2004 | X5: 2005 | Y5: 2006 | Z5: 2007 | AA5: 2008 | AB5: 2009 | AC5: 2010 | AD5: 2011 | AE5: 2012 | AF5: 2013 | AG5: 2014 | AH5: 2015 | AI5: 2016 | AJ5: 2017 | AK5: Fjöldi | AL5: %
B6: Almennur tekjuskattur | C6: 52070451.05 | D6: 55206962.58 | E6: 58406127.99 | F6: 67124905.14 | G6: 72608449.19 | H6: 81888604.89 | I6: 86372248.19 | J6: 92775586.84 | K6: 87864209 | L6: 91157008.02 | M6: 97428629.85 | N6: 104277624.6 | O6: 112657436.3 | P6: 117498850.5 | Q6: 134326898 | R6: 152251532.7 | S6: =+R6-Q6 -> 17924634.73 | T6: =+R6/Q6-1 -> 0.1334403981 | U6: 142209 | V6: 142975 | W6: 148466 | X6: 157687 | Y6: 163450 | Z6: 175399 | AA6: 178270 | AB6: 179521 | AC6: 158603 | AD6: 151290 | AE6: 156018 | AF6: 158455 | AG6: 163862 | AH6: 169240 | AI6: 181639 | AJ6: 199636 | AK6: =+AJ6-AI6 -> 17997 | AL6: =+AJ6/AI6-1 -> 0.09908114447
B7: Sérstakur tekjuskattur | C7: 1421350.18 | D7: 1772627.917 | E7: 1357793.212 | F7: 1411273.32 | G7: 1023391.339 | H7: 0 | I7: 0 | J7: 0 | K7: 0 | L7: 0 | M7: 0 | S7: 0 | U7: 13300 | V7: 14589 | W7: 14986 | X7: 17456 | Y7: 23931 | Z7: 0 | AA7: 0 | AB7: 0 | AC7: 0 | AD7: 0 | AE7: 0 | AF7: 0 | AK7: =+AJ7-AI7 -> 0 | AL7: *
B8: Fjármagnstekjuskattur | C8: 4143682.828 | D8: 4581201.525 | E8: 6441675.64 | F8: 7583406.466 | G8: 12197665.51 | H8: 16333666.52 | I8: 25254515.67 | J8: 19740812.12 | K8: 15704248.79 | L8: 10127564.5 | M8: 10270584.37 | N8: 11695567.03 | O8: 14466043.83 | P8: 16821695.77 | Q8: 17937397.79 | R8: 22382569.49 | S8: 4445171.705 | T8: 0.2478158626 | U8: 76128 | V8: 74436 | W8: 76924 | X8: 77080 | Y8: 84680 | Z8: 93078 | AA8: 98738 | AB8: 184626 | AC8: 182699 | AD8: 46768 | AE8: 39066 | AF8: 41675 | AG8: 44990 | AH8: 38780 | AI8: 39191 | AJ8: 42964 | AK8: =+AJ8-AI8 -> 3773 | AL8: =+AJ8/AI8-1 -> 0.09627210329
B9: Tekjuskattar til ríkissjóðs alls | C9: 57635754.06 | D9: 61560792.02 | E9: =+E6+E7+E8 -> 66205596.84 | F9: 76119584.92 | G9: 85829506.04 | H9: 98222271.41 | I9: 111626763.9 | J9: 112516399 | K9: 103568457.8 | L9: 101284572.5 | M9: 107699214.2 | N9: 115973191.7 | O9: 127123480.1 | P9: 134320546.3 | Q9: 152264295.8 | R9: 174634102.2 | S9: 22369806.44 | T9: 0.1469143264 | U9: * | V9: * | W9: * | X9: * | Y9: * | Z9: * | AA9: * | AB9: * | AC9: *
B10: Útsvar | C10: 56046146.75 | D10: 59994776.95 | E10: 63042777.96 | F10: 69047583.04 | G10: 77706922.73 | H10: 87308069.27 | I10: 101944284.6 | J10: 108745239.3 | K10: 110199993 | L10: 109715457.2 | M10: 130521607.9 | N10: 139242852.6 | O10: 147999254.4 | P10: 159048821.7 | Q10: 172183684.1 | R10: 192710732.4 | S10: 20527048.33 | T10: 0.1192159898 | U10: 217442 | V10: 218163 | W10: 221814 | X10: 226896 | Y10: 234171 | Z10: 244883 | AA10: 255777 | AB10: 257020 | AC10: 250070 | AD10: 249771 | AE10: 251018 | AF10: 253606 | AG10: 256689 | AH10: 260708 | AI10: 265698 | AJ10: 276097 | AK10: =+AJ10-AI10 -> 10399 | AL10: =+AJ10/AI10-1 -> 0.03913842031
B11: Tekjuskattar alls | C11: 113681904.7 | D11: 121555569 | E11: =+E9+E10 -> 129248374.8 | F11: 145167168 | G11: 163536428.8 | H11: 185530340.7 | I11: 213571048.4 | J11: 221261638.3 | K11: 213768450.8 | L11: 211000029.8 | M11: 238220822.1 | N11: 255216044.3 | O11: 275122734.5 | P11: 293369368 | Q11: 324447979.8 | R11: 367344834.6 | S11: 42896854.77 | T11: 0.1322148925 | U11: * | V11: * | W11: * | X11: * | Y11: * | Z11: * | AA11: * | AB11: * | AC11: *
B13: Almennur eignarskattur | C13: 3424740.215 | D13: 1815144.026 | E13: 2176123.916 | F13: 2833965.128 | G13: 0 | H13: 0 | I13: 0 | J13: 0 | K13: 0 | L13: 0 | S13: =+R13-Q13 -> 0 | T13: =+R13/Q13-1 ->  | U13: 62976 | V13: 65173 | W13: 69495 | X13: 75588 | Y13: 0 | Z13: 0 | AA13: 0 | AB13: 0 | AC13: 0 | AK13: =+AJ13-AI13 -> 0 | AL13: *
B14: Sérstakur eignarskattur | C14: 368177.563 | D14: 0 | E14: 0 | F14: 0 | G14: 0 | H14: 0 | I14: 0 | J14: 0 | S14: =+R14-Q14 -> 0 | T14: =+R14/Q14-1 ->  | U14: 29882 | V14: 0 | W14: 0 | X14: 0 | Y14: 0 | Z14: 0 | AA14: 0 | AB14: 0 | AK14: =+AJ14-AI14 -> 0 | AL14: *
B15: Auðlegðarskattur | K15: 3816510.372 | L15: 4802056.676 | M15: 5599689.266 | N15: 5581141.182 | O15: 6163996.061 | AC15: 3817 | AD15: 4772 | AE15: 5212 | AF15: 5980 | AG15: 6534
B16: Viðbótarauðlegðarskattur | C16: 0 | D16: 0 | E16: 0 | F16: 0 | G16: 0 | H16: 0 | I16: 0 | J16: 0 | K16: 0 | L16: 1757633.892 | M16: 2432393.463 | N16: 3504066.292 | O16: 4739733.127 | AD16: 3388 | AE16: 4134 | AF16: 4988 | AG16: 5735
B17: Eignarskattar alls | C17: =SUM(C13:C16) -> 3792917.778 | D17: =SUM(D13:D16) -> 1815144.026 | E17: 2176123.916 | F17: 2833965.128 | G17: 0 | H17: 0 | I17: 0 | J17: 0 | K17: 3816510.372 | L17: 6559690.568 | M17: =SUM(M15:M16) -> 8032082.729 | N17: 9085207.474 | O17: 10903729.19 | U17: * | V17: * | W17: * | X17: * | Y17: * | Z17: * | AA17: * | AB17: * | AC17: 3817 | AD17: =+AD15 -> 4772
B19: Gjald í framkvsj. aldr. | C19: 760756.277 | D19: 857300.003 | E19: 895059.52 | F19: 950809.552 | G19: 1036650.15 | H19: 1144349.121 | I19: 1317833.796 | J19: 1429014.918 | K19: 1516158 | L19: 1485506.4 | M19: 1661730.05 | N19: 1757455.177 | O19: 1838708.542 | P19: 1923941.928 | Q19: 2045628.288 | R19: 2253046.622 | S19: =+R19-Q19 -> 207418.334 | T19: =+R19/Q19-1 -> 0.1013959062 | U19: 157639 | V19: 157593 | W19: 160520 | X19: 165704 | Y19: 170642 | Z19: 181259 | AA19: 185532 | AB19: 189698 | AC19: 180495 | AD19: 176846 | AE19: 180979 | AF19: 182993 | AG19: 185522 | AH19: 189387 | AI19: 195492 | AJ19: 205647 | AK19: =+AJ19-AI19 -> 10155 | AL19: =+AJ19/AI19-1 -> 0.05194585968
B20: Útvarpsgjald | F20: 0 | G20: 0 | H20: 0 | I20: 0 | J20: 3222230.817 | K20: 3103894.8 | L20: 3166205.7 | M20: 3402348.8 | N20: 3437711.601 | O20: 3596643.6 | P20: 3368400.801 | Q20: 3203182.4 | R20: 3452416.8 | S20: =+R20-Q20 -> 249234.4 | T20: =+R20/Q20-1 -> 0.07780836958 | Z20: 0 | AA20: 0 | AB20: 187340 | AC20: 180459 | AD20: 176853 | AE20: 180976 | AF20: 182858 | AG20: 185394 | AH20: 189237 | AI20: 195316 | AJ20: 205501 | AK20: =+AJ20-AI20 -> 10185 | AL20: =+AJ20/AI20-1 -> 0.05214626554
B21: Önnur gjöld** | C21: 450265.141 | D21: 439255.491 | E21: 346549.761 | F21: 352752.982 | G21: 377612.974 | H21: 264307.071 | I21: 269714.5 | J21: 330010.584 | K21: 319719.822 | L21: 303874.759 | M21: 348418.931 | N21: 369914.295 | O21: 367385.995 | P21: 376041.99 | Q21: 395909.146 | R21: 396387.298 | S21: =+R21-Q21 -> 478.152 | T21: =+R21/Q21-1 -> 0.001207731634 | U21: * | V21: * | W21: * | X21: * | Y21: * | Z21: * | AA21: * | AB21: * | AC21: *
B23: Tryggingagjald | C23: 1626475.258 | D23: 1375863.698 | E23: 1360737.243 | F23: 1364351.373 | G23: 1627039.143 | H23: 1556719.023 | I23: 1500759.929 | J23: 1453052.437 | K23: 1660079.787 | L23: 2057145.129 | M23: 2250496.894 | N23: 2150266.105 | O23: 2413559.703 | P23: 2290088.904 | Q23: 2402271.469 | R23: 2416846.213 | S23: =+R23-Q23 -> 14574.744 | T23: =+R23/Q23-1 -> 0.006067067851 | U23: 24159 | V23: 21897 | W23: =13931+6658 -> 20589 | X23: =13611+6245 -> 19856 | Y23: 22109 | Z23: 19945 | AA23: 19418 | AB23: 19266 | AC23: 20663 | AD23: 18115 | AE23: 19230 | AF23: 19225 | AG23: 21489 | AH23: 19477 | AI23: 19393 | AJ23: 19031 | AK23: =+AJ23-AI23 -> -362 | AL23: =+AJ23/AI23-1 -> -0.01866652916
B25: Samtals gjöld á einstaklinga | C25: 120312045.3 | D25: =+D11+D17+D19+D21+D23 -> 126043132.2 | E25: 134026845.2 | F25: 150669047 | G25: 166577731 | H25: 188495715.9 | I25: 216659356.7 | J25: =+J11+J17+J19+J21+J23+J20 -> 227695947 | K25: 224184813.6 | L25: 224572452.3 | M25: 253915899.5 | N25: 272016598.9 | O25: 294242761.6 | P25: 301327841.6 | Q25: 332494971.1 | R25: 375863531.5 | S25: =+R25-Q25 -> 43368560.4 | T25: =+R25/Q25-1 -> 0.1304337333 | U25: * | V25: * | W25: * | X25: * | Y25: * | Z25: * | AA25: * | AB25: * | AC25: *
B26: -bætur sbr. neðangreint | C26: 9198438.306 | D26: =+D34 -> 10374824.06 | E26: 10307034.17 | F26: 10209813.99 | G26: 10482947.3 | H26: 12728229.82 | I26: 15457168.71 | J26: =+J34 -> 19632408.9 | K26: 21293593.48 | L26: 26287425.16 | M26: 22042348.75 | N26: 18845680.88 | O26: 17515311.21 | P26: 16989565.08 | Q26: 14495486.12 | R26: 13572433.15 | S26: =+R26-Q26 -> -923052.966 | T26: =+R26/Q26-1 -> -0.06367864855 | U26: * | V26: * | W26: * | X26: * | Y26: * | Z26: * | AA26: * | AB26: * | AC26: *
B27: Samtals gjöld - bætur | C27: 111113607 | D27: =+D25-D26 -> 115668308.1 | E27: 123719811.1 | F27: 140459233 | G27: 156094783.7 | H27: 175767486.1 | I27: 201202188 | J27: =+J25-J26 -> 208063538.1 | K27: 202891220.1 | L27: 198285027.1 | M27: 231873550.8 | N27: 253170918.1 | O27: 276727450.3 | P27: 284338276.5 | Q27: 317999485 | R27: 362291098.4 | S27: =+R27-Q27 -> 44291613.36 | T27: =+R27/Q27-1 -> 0.1392820286 | U27: * | V27: * | W27: * | X27: * | Y27: * | Z27: * | AA27: * | AB27: * | AC27: *
B29: Bætur:**
B30: Barnabætur | C30: 4464839.052 | D30: 5001873.776 | E30: 5132619.899 | F30: 5035355.611 | G30: 5993405.457 | H30: 7438442 | I30: 8382837.47 | J30: 9615939.225 | K30: 9950822.11 | L30: 7992338.386 | M30: 7457341.848 | N30: 10117762.02 | O30: 9517893.948 | P30: 10003232.59 | Q30: 9305545.818 | R30: 9256088.744 | S30: =+R30-Q30 -> -49457.074 | T30: =+R30/Q30-1 -> -0.005314795603 | U30: 51844 | V30: 55123 | W30: 55412 | X30: 53871 | Y30: 55481 | Z30: 63691 | AA30: 66542 | AB30: 69129 | AC30: 69827 | AD30: 55991 | AE30: 51762 | AF30: 56693 | AG30: 53525 | AH30: 48416 | AI30: 44829 | AJ30: 43546 | AK30: =+AJ30-AI30 -> -1283 | AL30: =+AJ30/AI30-1 -> -0.0286198666
B31: Vaxtabætur | C31: 4733599.254 | D31: 5372950.28 | E31: 5174414.267 | F31: 5174458.377 | G31: 4489541.846 | H31: 5289787.823 | I31: 6652968.741 | J31: 10016469.68 | K31: 11342771.37 | L31: 12018590.56 | M31: 8844694.931 | N31: 8727918.86 | O31: 7997417.264 | P31: 6986332.488 | Q31: 5189940.298 | R31: 4316344.406 | S31: =+R31-Q31 -> -873595.892 | T31: =+R31/Q31-1 -> -0.1683248442 | U31: 53200 | V31: 56158 | W31: 57888 | X31: 53983 | Y31: 43902 | Z31: 49687 | AA31: 58259 | AB31: 64900 | AC31: 69582 | AD31: 56644 | AE31: 46415 | AF31: 44876 | AG31: 41933 | AH31: 37754 | AI31: 29710 | AJ31: 26107 | AK31: =+AJ31-AI31 -> -3603 | AL31: =+AJ31/AI31-1 -> -0.1212722989
B32: Uppbót á eftirlaun | E32: 0 | F32: 0 | G32: 0 | H32: 0 | I32: 421362.5 | J32: 0 | K32: 0 | L32: 0 | M32: 0 | N32: 0 | S32: =+R32-Q32 -> 0 | T32: =+R32/Q32-1 ->  | Z32: =+Y32-X32 -> 0 | AA32: 0 | AB32: 0 | AC32: 0 | AD32: 0 | AE32: 0 | AK32: =+AJ32-AI32 -> 0 | AL32: =+AK32-AI32 -> 0
B33: Sérstök niðurgreiðsla vaxta | H33: 0 | I33: 0 | J33: 0 | K33: 0 | L33: 6276496.217 | M33: 5740311.976 | Z33: =+Y33-X33 -> 0 | AA33: =+Z33-Y33 -> 0 | AB33: =+AA33-Z33 -> 0 | AC33: =+AB33-AA33 -> 0 | AD33: 102652 | AE33: 97301
B34: Samtals bætur | C34: =+C30+C31+C32 -> 9198438.306 | D34: =+D30+D31+D32 -> 10374824.06 | E34: 10307034.17 | F34: 10209813.99 | G34: 10482947.3 | H34: 12728229.82 | I34: 15457168.71 | J34: =+J30+J31+J32 -> 19632408.9 | K34: =+K30+K31+K32 -> 21293593.48 | L34: =+L30+L31+L32+L33 -> 26287425.16 | M34: 22042348.75 | N34: 18845680.88 | O34: 17515311.21 | P34: 16989565.08 | Q34: 14495486.12 | R34: 13572433.15 | S34: =+R34-Q34 -> -923052.966 | T34: =+R34/Q34-1 -> -0.06367864855 | U34: * | V34: * | W34: * | X34: * | Y34: * | Z34: * | AA34: * | AB34: * | AC34: *
B36: Skattaívilnanir:
B37: Sjómannaafsláttur, dagar, þús | C37: 1765.569 | D37: 1796.088 | E37: 1738.108 | F37: 1698.123 | G37: 1554.549 | H37: 1411.519 | I37: 1342.709 | J37: 1277.84 | K37: 1326.281 | L37: 1315.868 | M37: 1377.149 | N37: 1378.434 | O37: 1317.649 | U37: * | V37: * | W37: * | X37: * | Y37: * | Z37: * | AA37: * | AB37: * | AC37: *
B38: Sjómannaafsláttur | C38: 1208916.358 | D38: 1267437.722 | E38: 1254288.927 | F38: 1255962.579 | G38: 1185426.237 | H38: 1102038.409 | I38: 1109377.142 | J38: 1104656.93 | K38: 1296866.812 | L38: 1285.712877 | M38: 984.658429 | N38: 652.41715 | O38: 310.709637 | U38: 7702 | V38: 7464 | W38: 7119 | X38: 7059 | Y38: 6743 | Z38: 6255 | AA38: 5997 | AB38: 5736 | AC38: 5720 | AD38: 5771 | AE38: 5889 | AF38: 5811 | AG38: 5580
B39: Frádráttur v. fjárfestingar í hlutabr. | C39: 823026.448 | D39: 636224.561 | E39: 0 | F39: 0 | G39: 0 | H39: 0 | I39: 0 | J39: 0 | K39: 0 | L39: 0 | U39: 7793 | V39: 5518 | W39: 0 | X39: 0 | Y39: 0 | Z39: 0 | AA39: 0 | AB39: 0 | AC39: 0 | AD39: 0
B40: Frádráttur vegna viðhalds fasteigna | H40: 0 | I40: 0 | J40: 0 | K40: 0 | L40: 1588224.047 | Z40: 0 | AA40: 0 | AB40: 0 | AC40: 0 | AD40: 18116
B42: Fjöldi á grunnskrá | U42: 224914 | V42: 226462 | W42: 229665 | X42: 234437 | Y42: 241344 | Z42: 253911 | AA42: 264766 | AB42: 267494 | AC42: 261436 | AD42: 260764 | AE42: 261764 | AF42: 264193 | AG42: 268451 | AH42: 271806 | AI42: 277606 | AJ42: 286728 | AK42: =+AJ42-AI42 -> 9122 | AL42: =+AJ42/AI42-1 -> 0.03285952033
B44: *Önnur gjöld eru slysatryggingagjald vegna heimilisstarfa, iðnaðarmálagjald og búnaðargjald.
B45: **Við álagningu opinberra gjalda 2002 var framteljendum sem ekki skiluðu framtali ekki áætlaðar barnabætur og hefur sá háttur verið hafður á síðan

Sheet Sheet1

Sheet Sheet2

Sheet Sheet3
